bitfinex/quotes_ETHUSD_20250216
["timestamp","ask_amount","ask_price","bid_price","bid_amount"]
[1739740393842,0.11195117,2673.4,2673.3,5.31224297]
[1739740394078,0.11195117,2673.4,2673.3,1.57155297]
[1739740394079,5.45195117,2673.4,2673.3,1.57155297]
[1739740394479,5.45195117,2673.4,2673.3,5.31224297]
[1739740395584,5.45195117,2673.4,2673.3,1.57155297]
[1739740398478,8.32284629,2673.4,2673.1,1.57155297]
[1739740398684,8.32284629,2673.4,2672.9,5.31273297]
[1739740398849,0.8137,2673.3,2672.9,5.31273297]
[1739740399049,0.11191959,2673.2,2672.9,5.31273297]
[1739740399369,0.91365147,2673.2,2672.9,5.31273297]
[1739740399566,0.11171305,2673.1,2672.9,5.31273297]
[1739740400080,0.11171305,2673.1,2672.9,9.05390297]
[1739740400271,0.8137,2673.0,2672.7,9.05438297]
[1739740400577,5.45171049,2672.9,2672.8,3.74139]
[1739740401177,5.45171049,2672.9,2672.7,3.74141]
[1739740401481,5.45171049,2672.9,2672.8,3.74139]
[1739740404689,6.07825154,2672.9,2672.6,3.74154]
[1739740404989,6.07825154,2672.9,2672.7,7.48294]
[1739740405283,6.07825154,2672.9,2672.7,3.74144]
[1739740405895,6.07825154,2672.9,2672.7,7.4329]
[1739740406200,5.45171049,2672.9,2672.7,3.69144]
[1739740406398,5.45171049,2672.9,2672.8,3.74139]
[1739740409176,5.45171049,2672.9,2672.6,3.7416]
[1739740411416,5.45171049,2672.9,2672.5,6.98497638]
[1739740411575,7.69646049,2672.9,2672.5,3.74171]
[1739740411917,3.83458605,2672.8,2672.3,3.74204]
[1739740412072,1.69715872,2672.8,2672.4,3.74192]
[1739740412274,3.94202872,2672.8,2672.3,3.74201]
[1739740412475,0.8201,2672.7,2672.3,3.74201]
[1739740412696,0.10730746,2672.6,2672.1,3.74231]
[1739740413004,5.34,2672.5,2672.2,3.74219]
[1739740413311,0.1073049,2672.4,2672.3,3.74208]
[1739740413519,0.1073049,2672.4,2672.2,3.74216]
[1739740413822,0.8201,2672.3,2672.2,3.74216]
[1739740414340,0.10705622,2672.3,2672.2,3.74216]
[1739740414488,6.1601,2672.5,2672.2,3.74216]
[1739740414817,0.10705622,2672.3,2672.1,3.74231]
[1739740415118,6.77611,2672.5,2671.9,9.98583638]
[1739740415119,6.77611,2672.5,2671.9,9.98586638]
[1739740415309,6.77611,2672.5,2672.3,3.74199]
[1739740416380,6.77611,2672.5,2672.4,3.74195]
[1739740417005,6.77611,2672.5,2672.2,7.48432]
[1739740417205,6.77611,2672.5,2672.3,3.74205]
[1739740417403,0.677611,2672.4,2672.3,3.74205]
[1739740417616,6.1601,2672.5,2672.3,3.74201]
[1739740418323,6.1601,2672.5,2672.0,3.74244]
[1739740418531,6.1601,2672.5,2672.1,3.74227]
[1739740419005,0.8201,2672.3,2672.0,3.69244]
[1739740419203,0.306527,2672.2,2671.9,3.74262]
[1739740419420,5.646527,2672.2,2671.8,3.74271]
[1739740420052,0.8155,2671.9,2671.5,3.74314]
[1739740420192,0.306106,2671.8,2671.5,3.74314]
[1739740420523,0.306106,2671.8,2671.1,0.5573]
[1739740420524,0.306106,2671.8,2671.7,3.74293]
[1739740420726,0.8155,2671.9,2671.7,3.74293]
[1739740421486,0.8155,2671.6,2671.0,3.24326638]
[1739740421626,0.8155,2671.6,2670.8,0.0955588]
[1739740421976,3.06149,2671.5,2670.9,3.74401]
[1739740422121,1.06474,2671.4,2670.9,3.74401]
[1739740422320,1.06474,2671.4,2670.8,0.0955588]
[1739740422565,0.8155,2671.1,2670.8,0.0955588]
[1739740422818,6.06193,2670.9,2670.8,0.0955588]
[1739740423075,13.64593,2670.9,2670.8,0.0955588]
[1739740423250,15.235158,2670.9,2670.8,0.0955588]
[1739740423757,10.744728,2670.9,2670.8,0.0955588]
[1739740424065,6.4235,2670.9,2670.8,3.8397488]
[1739740424355,6.26161503,2670.9,2670.8,0.0955588]
[1739740424731,6.26161503,2670.9,2670.8,3.8397488]
[1739740424931,5.34,2670.9,2670.8,3.8397488]
[1739740425154,5.44611503,2670.9,2670.8,3.8397488]
[1739740426264,0.10611503,2670.9,2670.8,3.8397488]
[1739740426460,1.0835,2671.5,2670.8,4.23402132]
[1739740426635,0.10237808,2671.4,2671.0,3.74382]
[1739740427841,0.10237808,2671.4,2671.1,3.74376]
[1739740428041,0.10237808,2671.4,2671.0,3.74382]
[1739740428262,0.10237808,2671.4,2671.1,3.74374]
[1739740428627,0.10237808,2671.4,2671.1,3.0]
[1739740428865,0.10237808,2671.4,2670.8,3.8396888]
[1739740429159,1.07713081,2671.3,2670.8,3.8396888]
[1739740429359,0.10244094,2671.2,2670.8,3.8396588]
[1739740429661,1.07713081,2671.3,2670.9,3.74404]
[1739740429867,0.10243966,2671.1,2671.0,3.74391]
[1739740430178,6.1555,2671.6,2671.2,3.74363]
[1739740430329,6.4245,2671.6,2671.2,7.48717]
[1739740430530,6.4245,2671.6,2671.2,3.74354]
[1739740431664,6.4245,2671.6,2671.0,3.74382]
[1739740431874,0.64245,2671.5,2671.1,3.0]
[1739740432032,0.64245,2671.5,2671.1,6.74372]
[1739740432384,0.64245,2671.5,2671.1,3.0]
[1739740432868,0.8155,2671.4,2671.1,3.74377]
[1739740433030,0.8155,2671.4,2670.9,3.74394]
[1739740433231,0.8155,2671.4,2670.8,0.0955588]
[1739740433644,0.8155,2671.2,2670.8,0.0955588]
[1739740433987,5.34,2671.1,2670.8,0.0955588]
[1739740434836,5.34,2671.1,2670.8,3.8397088]
[1739740435036,5.34,2671.1,2670.8,0.0955588]
[1739740437368,5.34,2671.1,2670.9,3.74396]
[1739740438103,5.34,2671.1,2671.0,3.74391]
[1739740438399,5.34,2671.1,2670.9,7.48793]
[1739740438588,6.1555,2671.2,2670.9,7.48792]
[1739740438900,5.34,2671.2,2671.1,3.74377]
[1739740439468,5.442349,2671.2,2671.1,3.74377]
[1739740440069,5.442349,2671.2,2671.0,3.74383]
[1739740440269,5.442349,2671.2,2671.0,7.48767]
[1739740440492,5.442349,2671.2,2671.0,3.74383]
[1739740440704,6.0672339,2671.2,2671.0,3.74383]
[1739740441322,6.0672339,2671.2,2670.8,0.0955588]
[1739740441486,0.8065,2671.1,2670.8,0.0955588]
[1739740444217,7.63697084,2670.9,2670.8,0.0955588]
[1739740444907,12.88340084,2670.9,2670.8,0.0955588]
[1739740445422,10.63697084,2670.9,2670.8,0.0955588]
[1739740446037,12.88340084,2670.9,2670.8,0.0955588]
[1739740446328,7.63797084,2670.9,2670.8,0.0955588]
[1739740448201,9.88440084,2670.9,2670.8,0.0955588]
[1739740448817,7.63797084,2670.9,2670.8,0.0955588]
[1739740449549,9.88440084,2670.9,2670.8,0.0955588]
[1739740449745,7.63797084,2670.9,2670.8,0.0955588]
[1739740450031,9.88440084,2670.9,2670.8,0.0955588]
[1739740450534,15.12840084,2670.9,2670.8,0.0955588]
[1739740451635,15.67840084,2670.9,2670.8,0.0955588]
[1739740451846,2.24741,2669.8,2668.9,4.39968]
[1739740452137,0.573211,2669.7,2668.9,4.39968]
[1739740452328,0.7747,2669.6,2668.9,4.39968]
[1739740452524,3.02224,2669.6,2668.9,0.6529]
[1739740452702,3.02224,2669.6,2668.9,4.39975]
[1739740452904,0.09302547,2669.5,2668.9,4.39975]
[1739740453216,0.09302547,2669.5,2669.0,3.74664]
[1739740453417,2.2477,2669.4,2668.8,3.74687]
[1739740453625,0.99586512,2669.5,2668.8,3.74687]
[1739740453926,0.09271881,2669.3,2668.9,3.74674]
[1739740454131,0.09271752,2669.2,2668.9,3.74674]
[1739740454308,8.50992638,2669.1,2668.2,3.9033588]
[1739740454502,0.7747,2668.9,2668.2,3.9032788]
[1739740454952,0.0925439,2668.8,2668.3,3.74769]
[1739740456207,0.0925439,2668.8,2668.2,0.1555588]
[1739740456208,0.0925439,2668.8,2668.5,3.74741]
[1739740456635,0.0925439,2668.8,2668.3,3.74766]
[1739740456636,5.611,2669.1,2668.3,3.74766]
[1739740456820,3.111399,2669.0,2668.3,3.74766]
[1739740457023,3.2037348,2669.0,2668.3,3.74766]
[1739740457332,2.24814,2668.9,2668.2,0.1555588]
[1739740457527,2.24814,2668.9,2668.2,3.9033988]
[1739740457734,3.2037348,2669.0,2668.2,0.1555588]
[1739740457735,0.09233323,2668.8,2668.2,0.1555588]
[1739740457912,0.7747,2668.6,2668.2,0.1555588]
[1739740458104,0.302303,2668.5,2668.2,0.1555588]
[1739740458305,0.7747,2668.6,2668.2,0.1555588]
[1739740458814,0.09154312,2668.5,2668.2,0.1555588]
[1739740460110,0.09154312,2668.5,2668.3,3.74766]
[1739740460311,0.09154312,2668.5,2668.2,0.1555588]
[1739740460711,0.09144348,2668.4,2668.2,0.1555588]
[1739740461142,0.7747,2668.3,2668.2,0.1555588]
[1739740461529,0.86612655,2668.3,2668.2,0.1555588]
[1739740462054,3.01297655,2668.3,2668.2,0.1555588]
[1739740462341,1.6277992,2668.3,2668.2,0.1555588]
[1739740463548,7.0672492,2668.3,2668.2,8.8e-06]
[1739740463721,7.0672492,2668.3,2667.1,0.005]
[1739740463722,1.87462,2667.2,2667.1,0.005]
[1739740464047,2.23948847,2667.2,2667.1,0.005]
[1739740464250,5.23948847,2667.2,2667.1,0.005]
[1739740464414,7.06551896,2667.2,2667.1,0.005]
[1739740464755,7.06551896,2667.2,2664.8,0.3]
[1739740464756,1.0219,2666.6,2665.5,0.1455588]
[1739740464960,0.8219,2665.9,2665.5,0.1455588]
[1739740465141,0.36705488,2665.8,2665.7,3.75122]
[1739740465341,0.09005488,2665.8,2665.7,3.75135]
[1739740465541,1.0989,2665.9,2665.8,3.75121]
[1739740465741,0.8219,2666.4,2665.8,3.75121]
[1739740465928,0.277,2666.3,2666.2,3.75065]
[1739740466257,0.09006095,2666.3,2666.2,3.75065]
[1739740466618,0.09006095,2666.3,2665.5,0.7984588]
[1739740466920,0.09006095,2666.3,2665.5,0.1455588]
[1739740467276,0.09006095,2666.3,2665.5,3.8971888]
[1739740467277,1.96533095,2666.3,2665.5,3.8971888]
[1739740467415,0.49394209,2666.2,2665.6,3.75149]
[1739740467619,0.49394209,2666.2,2665.5,0.1455588]
[1739740467873,0.08950492,2666.1,2665.5,3.8971488]
[1739740468073,0.08950492,2666.1,2665.8,3.75108]
[1739740468226,0.36750492,2666.1,2665.8,3.75108]
[1739740468427,0.36750492,2666.1,2665.5,0.1455588]
[1739740468727,0.278,2666.1,2666.0,3.75093]
[1739740469274,0.278,2666.5,2666.3,3.75051]
[1739740469418,0.278,2667.1,2666.6,3.75009]
[1739740469624,0.8219,2667.2,2666.8,3.74981]
[1739740470052,0.8219,2667.2,2666.7,3.7499]
[1739740470259,0.278,2667.3,2667.2,3.74925]
[1739740470736,0.8219,2667.6,2667.4,3.74887]
[1739740470937,0.8219,2667.6,2667.2,3.74925]
[1739740471248,0.8219,2667.6,2667.1,3.74937]
[1739740471865,0.8219,2667.6,2666.7,3.74984]
[1739740471866,4.61591732,2667.6,2666.7,3.74984]
[1739740472025,0.55,2667.4,2666.5,3.75018]
[1739740472226,0.279,2667.3,2666.6,3.75007]
[1739740472428,0.279,2667.3,2666.7,3.74984]
[1739740472626,0.279,2667.3,2666.9,3.74953]
[1739740472822,0.8219,2667.6,2666.7,0.6529]
[1739740473026,0.8219,2667.6,2667.4,3.74885]
[1739740473424,0.8219,2667.6,2666.8,3.74981]
[1739740473625,0.8219,2667.6,2667.0,3.74939]
[1739740474525,3.79401732,2667.9,2666.7,0.6529]
[1739740474725,0.88329173,2667.8,2667.1,3.74932]
[1739740475226,0.88329173,2667.8,2667.2,3.74924]
[1739740475426,0.88329173,2667.8,2667.3,3.74909]
[1739740475626,0.88329173,2667.8,2667.1,3.74934]
[1739740475842,0.279,2667.8,2667.1,3.74934]
[1739740476041,0.279,2667.8,2667.1,7.49864]
[1739740476263,0.279,2667.8,2667.1,3.7493]
[1739740476459,0.279,2667.8,2667.2,3.74919]
[1739740476630,0.279,2667.8,2667.3,3.749]
[1739740476829,0.279,2667.8,2667.4,3.74895]
[1739740477072,5.34,2667.7,2667.4,3.74895]
[1739740477264,5.34,2667.7,2667.2,3.74919]
[1739740477477,5.902,2667.7,2667.4,3.74888]
[1739740477692,5.902,2667.7,2667.2,3.74923]
[1739740477844,5.902,2667.7,2667.0,3.74945]
[1739740478176,5.902,2667.7,2667.1,3.74937]
[1739740478357,5.902,2667.7,2667.0,3.74945]
[1739740478545,0.5902,2667.6,2667.2,3.74923]
[1739740478737,0.5902,2667.6,2666.7,0.6529]
[1739740478938,5.9302,2667.6,2667.0,3.74939]
[1739740479144,0.8219,2667.5,2666.6,3.75007]
[1739740479353,0.55,2667.4,2666.6,7.50008]
[1739740479568,0.51659173,2667.3,2666.6,3.75001]
[1739740479755,5.17321732,2667.2,2666.3,3.7504]
[1739740479960,0.55,2667.0,2666.3,3.7504]
[1739740480244,0.8292,2666.9,2666.3,3.7504]
[1739740480765,0.8292,2666.9,2665.9,3.75104]
[1739740481111,0.8292,2666.9,2666.6,3.75]
[1739740481281,0.28,2667.1,2666.8,3.74981]
[1739740481440,0.28,2667.1,2666.4,3.75029]
[1739740481645,0.28,2667.1,2666.6,3.75007]
[1739740481853,0.28,2667.1,2666.4,3.75029]
[1739740482058,0.49032173,2667.0,2666.5,3.75014]
[1739740482253,0.49032173,2667.0,2666.6,3.75006]
[1739740482482,0.8292,2667.2,2666.8,3.74979]
[1739740482681,0.282,2667.0,2666.9,3.74963]
[1739740483383,0.8292,2667.2,2666.9,3.74963]
[1739740483589,0.8292,2667.2,2667.0,3.74943]
[1739740483883,0.08632802,2667.1,2666.9,3.74959]
[1739740484062,0.08632802,2667.1,2666.9,7.49916]
[1739740484381,0.08632802,2667.1,2667.0,3.74953]
[1739740484975,0.08632802,2667.1,2667.0,3.74944]
[1739740485155,0.8292,2667.2,2667.0,3.74944]
[1739740485356,0.08632802,2667.1,2667.0,7.49887]
[1739740485863,1.1112,2667.5,2666.8,3.74973]
[1739740486059,1.1112,2667.5,2667.2,3.74917]
[1739740486292,0.08646319,2667.4,2667.3,3.74909]
[1739740487156,0.08646319,2667.4,2667.2,3.74917]
[1739740487687,0.282,2667.7,2667.2,3.74917]
[1739740487688,0.08646191,2667.3,2667.2,3.74917]
[1739740488189,5.622,2667.7,2667.4,3.74886]
[1739740488486,6.44152,2667.7,2666.9,0.6529]
[1739740488667,6.44152,2667.7,2667.2,3.74911]
[1739740488872,6.44152,2667.7,2667.0,3.74951]
[1739740489754,6.44152,2667.7,2667.0,7.49896]
[1739740490085,6.44152,2667.7,2667.0,7.49889]
[1739740490297,1.51829473,2667.6,2667.1,3.74933]
[1739740490594,1.51829473,2667.6,2667.2,3.74915]
[1739740491383,1.51829473,2667.6,2667.2,7.49832]
[1739740491582,1.51829473,2667.6,2667.2,3.74915]
[1739740491981,5.34,2667.5,2667.0,3.74946]
[1739740492184,0.68582947,2667.4,2667.1,3.74938]
[1739740492353,0.68582947,2667.4,2667.2,3.74923]
[1739740492761,5.34,2667.5,2667.3,3.749]
[1739740493391,5.34,2667.5,2666.8,3.74971]
[1739740493697,5.34,2667.5,2667.1,3.74926]
[1739740494265,5.34,2667.5,2667.2,3.74924]
[1739740494664,5.34,2667.5,2667.3,3.74909]
[1739740494989,0.68582947,2667.4,2666.9,3.74956]
[1739740495191,0.68582947,2667.4,2667.0,3.74951]
[1739740495761,0.68582947,2667.4,2666.9,3.74956]
[1739740495985,0.68582947,2667.4,2667.1,3.74938]
[1739740496170,0.68582947,2667.4,2667.1,3.74929]
[1739740496492,0.68582947,2667.4,2667.0,3.74944]
[1739740496692,1.42778295,2667.3,2667.0,3.74944]
[1739740496860,3.67978295,2667.3,2666.8,3.7498]
[1739740497998,5.34,2667.2,2666.8,3.7498]
[1739740498895,5.34,2667.2,2666.8,3.74981]
[1739740499091,6.24197829,2667.2,2666.8,3.74981]
[1739740499392,0.08365998,2667.1,2666.8,3.74981]
[1739740499602,5.42365998,2667.1,2666.8,3.74981]
[1739740499896,5.42365998,2667.1,2666.6,3.74995]
[1739740500201,5.42365998,2667.1,2666.7,3.74989]
[1739740500394,5.42365998,2667.1,2666.6,3.74995]
[1739740500395,0.63256383,2667.0,2666.6,3.75006]
[1739740500697,0.08358708,2666.9,2666.6,7.50006]
[1739740500874,0.08358708,2666.9,2666.6,3.75]
[1739740501076,0.08358708,2666.9,2666.7,3.74993]
[1739740501667,0.08358708,2666.9,2666.2,4.40348]
[1739740501668,0.8252,2666.8,2666.6,3.75008]
[1739740502088,0.8252,2666.8,2666.4,3.75027]
[1739740502089,0.08358451,2666.7,2666.4,3.75027]
[1739740502464,3.0772,2666.8,2666.4,3.75027]
[1739740502666,6.33759028,2666.8,2666.3,3.7505]
[1739740502862,3.24533329,2666.7,2666.3,3.7505]
[1739740503270,10.46035329,2666.7,2666.0,3.75083]
[1739740503487,2.252,2666.5,2666.0,3.75083]
[1739740503678,2.252,2666.5,2666.1,3.75068]
[1739740503880,0.39095831,2666.4,2666.2,3.7506]
[1739740504189,0.08323831,2666.4,2666.3,3.75051]
[1739740504378,0.8252,2667.0,2666.9,3.74967]
[1739740504585,0.8252,2667.0,2666.8,3.74979]
[1739740504827,0.90225401,2667.0,2666.6,7.49995]
[1739740505119,0.90225401,2667.0,2666.7,3.74993]
[1739740505284,1.21767941,2667.0,2666.7,3.74993]
[1739740505483,3.46967941,2667.0,2666.1,0.6529]
[1739740505803,3.46967941,2667.0,2666.5,3.75015]
[1739740505981,3.46967941,2667.0,2666.6,7.50004]
[1739740506167,3.46967941,2667.0,2666.6,3.75002]
[1739740506363,2.89896794,2666.9,2666.6,3.75002]
[1739740506788,0.07127033,2666.8,2666.6,3.75001]
[1739740508189,0.07127033,2666.8,2665.9,0.6529]
[1739740508389,0.07127033,2666.8,2666.4,3.75033]
[1739740508598,2.60527033,2666.8,2666.4,3.75033]
[1739740508823,0.32522383,2666.7,2666.5,3.7501]
[1739740509001,0.07126776,2666.6,2666.5,3.7501]
[1739740509620,0.8252,2667.4,2667.1,3.74934]
[1739740509785,0.8252,2667.4,2667.1,3.74926]
[1739740510122,0.06866225,2667.3,2667.1,3.74932]
[1739740510321,0.06866225,2667.3,2667.2,3.74925]
[1739740510919,0.7577,2667.7,2667.6,3.74868]
[1739740511825,1.0397,2668.0,2667.5,3.74881]
[1739740512125,0.06927637,2667.9,2667.6,3.7486]
[1739740512322,0.06927637,2667.9,2667.1,4.40221]
[1739740512495,0.7577,2667.5,2666.9,3.74962]
[1739740512696,2.63215,2667.5,2666.9,7.49915]
[1739740513012,1.3077,2667.3,2666.6,3.74998]
[1739740513228,0.7577,2667.2,2666.6,3.74998]
[1739740513521,3.74948,2667.1,2666.6,3.74998]
[1739740513734,1.87474,2667.1,2666.6,3.74998]
[1739740514027,1.94391702,2667.0,2666.4,3.75029]
[1739740514191,1.94391702,2667.0,2666.7,3.7499]
[1739740514192,0.3818657,2666.9,2666.7,3.7499]
[1739740514386,0.06914444,2666.8,2666.7,3.7499]
[1739740514820,5.34,2667.1,2666.7,3.7499]
[1739740515232,0.283,2667.0,2666.9,3.74959]
[1739740515387,0.35214702,2667.0,2666.1,0.6529]
[1739740515727,0.7577,2666.9,2666.5,3.7502]
[1739740515922,0.2984647,2666.8,2666.4,3.75026]
[1739740516136,0.36721436,2666.8,2666.5,3.75021]
[1739740516326,0.06874966,2666.8,2666.6,3.75009]
[1739740516488,0.06874966,2666.8,2666.7,3.74995]
[1739740517825,5.623,2667.1,2667.0,3.74953]
[1739740518029,0.283,2667.3,2667.2,3.74925]
[1739740519126,0.7577,2667.2,2666.7,3.7499]
[1739740519331,0.291529,2667.1,2666.9,3.74953]
[1739740519624,0.283,2667.3,2667.2,3.74925]
[1739740521437,0.7577,2667.8,2667.5,3.74873]
[1739740521798,0.7577,2667.8,2667.3,3.749]
[1739740522031,0.7577,2667.8,2667.4,3.74883]
[1739740522431,0.7577,2667.8,2667.4,3.74895]
[1739740522799,0.63817,2667.7,2667.4,3.74895]
[1739740523005,0.63817,2667.7,2667.6,3.74868]
[1739740523514,0.7577,2667.8,2667.3,3.74901]
[1739740523714,0.7577,2667.8,2667.5,3.74881]
[1739740523912,0.7577,2667.8,2667.5,3.74873]
[1739740524115,0.7577,2667.8,2667.6,3.74866]
[1739740524310,0.7577,2667.8,2667.5,3.74873]
[1739740524512,0.7577,2667.8,2667.6,3.7486]
[1739740525235,0.63817,2667.8,2667.5,3.74873]
[1739740525742,0.63817,2667.8,2667.6,3.7486]
[1739740526112,0.63817,2667.8,2667.5,3.74873]
[1739740526340,0.63817,2667.8,2667.4,3.74893]
[1739740526834,2.51237,2667.8,2667.3,7.49802]
[1739740527040,0.63817,2667.8,2667.0,0.6529]
[1739740527236,0.284,2667.8,2667.6,3.74867]
[1739740528021,0.284,2667.8,2667.7,3.74854]
[1739740528230,0.284,2667.8,2667.6,3.74867]
[1739740528420,5.34,2667.9,2667.4,3.74887]
[1739740528751,1.080872,2667.9,2667.6,3.74868]
[1739740528931,1.080872,2667.9,2667.6,3.74858]
[1739740529302,0.06927943,2667.8,2667.4,7.49774]
[1739740529504,0.06927943,2667.8,2667.4,3.74886]
[1739740529730,0.06927943,2667.8,2667.5,3.74881]
[1739740529929,0.90570057,2667.8,2667.5,3.74881]
[1739740531636,0.06927943,2667.8,2667.7,3.74854]
[1739740532608,0.12707398,2667.8,2667.7,3.74854]
[1739740533735,5.623,2668.0,2667.7,3.74854]
[1739740533936,0.12739347,2667.8,2667.0,4.40238]
[1739740534113,11.13201878,2668.0,2667.4,3.74889]
[1739740534114,13.00607878,2668.0,2667.4,3.74889]
[1739740534322,0.12739347,2667.7,2667.6,3.74868]
[1739740534524,1.56348088,2667.9,2667.6,3.74868]
[1739740534724,0.12739347,2667.7,2667.6,3.74868]
[1739740534924,1.56348088,2667.9,2667.6,3.74868]
[1739740535148,0.12739347,2667.7,2667.6,3.74868]
[1739740535447,1.56348088,2667.9,2667.5,3.7488]
[1739740535629,0.12739347,2667.7,2667.5,7.4976]
[1739740535830,1.45695797,2667.8,2667.5,7.4976]
[1739740536036,1.45695797,2667.8,2667.5,3.7488]
[1739740536351,0.12739347,2667.7,2667.5,3.7488]
[1739740536551,0.7547,2667.6,2667.4,3.74896]
[1739740536718,0.7547,2667.6,2667.4,3.74888]
[1739740536921,0.12739347,2667.5,2667.4,3.74888]
[1739740538425,0.12739347,2667.5,2666.7,3.74992]
[1739740538426,0.7547,2667.4,2667.2,3.74914]
[1739740538628,0.12737468,2667.3,2667.0,3.74951]
[1739740538829,0.12737468,2667.3,2667.1,3.74932]
[1739740539947,0.12737468,2667.3,2667.2,3.74925]
[1739740540254,5.34,2667.6,2667.2,3.74925]
[1739740540570,0.12714919,2667.5,2667.3,3.749]
[1739740541019,0.12714919,2667.5,2667.4,3.74896]
[1739740547054,0.12714919,2667.5,2667.1,4.40219]
[1739740547254,0.12714919,2667.5,2667.2,3.74913]
[1739740547453,0.12714919,2667.5,2667.3,3.74903]
[1739740547756,0.12714919,2667.5,2667.4,3.74896]
[1739740548125,0.94334919,2667.5,2667.4,3.74896]
[1739740548346,1.57168411,2667.5,2667.3,3.749]
[1739740549065,1.57168411,2667.5,2667.1,3.74927]
[1739740549764,1.57168411,2667.5,2667.1,7.49856]
[1739740549936,1.57168411,2667.5,2666.9,0.6529]
[1739740549937,0.12714919,2667.5,2667.4,3.74896]
[1739740560292,2.45719919,2667.5,2667.0,3.74952]
[1739740560498,2.252,2667.4,2667.0,3.74952]
[1739740560870,1.49964,2667.3,2666.7,3.74987]
[1739740561066,0.8305,2667.1,2666.7,3.74987]
[1739740561281,0.12703317,2667.0,2666.7,3.74987]
[1739740561462,0.12703317,2667.0,2666.6,3.75009]
[1739740561664,0.12703317,2667.0,2666.8,3.74972]
[1739740562197,0.12703317,2667.0,2666.9,3.74967]
[1739740563200,0.281,2667.4,2667.3,3.7491]
[1739740563563,0.281,2667.4,2667.0,3.74943]
[1739740563760,0.281,2667.4,2667.1,3.74926]
[1739740563964,0.281,2667.4,2667.1,3.74939]
[1739740564673,0.281,2667.4,2666.9,3.7496]
[1739740564674,1.78059,2667.4,2666.9,3.7496]
[1739740564855,0.7933,2667.3,2667.1,3.74936]
[1739740565260,0.7933,2667.3,2666.9,7.49915]
[1739740565472,2.29297,2667.3,2666.8,3.74979]
[1739740565676,1.49972,2667.2,2666.6,3.74999]
[1739740565990,0.7933,2667.1,2666.6,3.74999]
[1739740566202,6.1333,2667.1,2666.6,3.74999]
[1739740566394,7.63306,2667.1,2666.6,3.74999]
[1739740566893,3.75188,2666.9,2665.9,0.6529]
[1739740567093,5.21607688,2666.9,2666.4,3.75026]
[1739740567279,1.46419688,2666.9,2666.6,3.74999]
[1739740567484,0.7933,2667.0,2666.7,3.74994]
[1739740567999,0.7933,2667.0,2666.6,3.75009]
[1739740568797,0.7933,2667.0,2666.5,3.75023]
[1739740569104,0.7933,2667.0,2666.8,3.74978]
[1739740569307,0.7933,2667.0,2666.8,3.74971]
[1739740569602,0.7933,2667.0,2666.6,3.74999]
[1739740569902,0.7933,2667.0,2666.6,7.49997]
[1739740570203,0.7933,2667.0,2666.7,3.74994]
[1739740570416,0.7855,2667.2,2666.9,3.74956]
[1739740570696,0.7855,2667.2,2667.1,3.74939]
[1739740570900,0.281,2667.4,2667.1,3.74939]
[1739740571099,0.281,2667.4,2667.2,3.74923]
[1739740571973,0.7855,2667.5,2667.1,3.74936]
[1739740572289,0.281,2667.6,2667.3,3.74902]
[1739740572476,1.0665,2667.7,2667.3,3.74902]
[1739740572776,1.857089,2667.7,2667.3,3.74902]
[1739740573408,1.857089,2667.7,2667.2,3.74914]
[1739740574292,0.12182802,2667.6,2667.2,3.74914]
[1739740575069,1.62130802,2667.6,2667.0,3.74943]
[1739740575274,2.28508,2667.4,2666.9,3.7496]
[1739740575685,0.12183745,2667.3,2666.9,3.7496]
[1739740576369,0.12183745,2667.3,2666.6,0.6529]
[1739740576574,0.12183745,2667.3,2667.2,3.74925]
[1739740577275,0.28,2667.7,2667.2,0.815151]
[1739740577475,0.12171482,2667.6,2667.5,3.74873]
[1739740578701,0.12171482,2667.6,2667.4,3.7489]
[1739740579598,0.12171482,2667.6,2667.3,3.74897]
[1739740579797,0.12171482,2667.6,2667.2,3.74915]
[1739740579976,0.12171482,2667.6,2667.1,4.4022]
[1739740580173,0.12171482,2667.6,2667.3,3.74907]
[1739740580411,0.6155723,2667.6,2667.3,3.74907]
[1739740581102,0.6155723,2667.6,2667.4,3.74895]
[1739740581287,0.12171482,2667.6,2667.5,3.74882]
[1739740581492,0.12171482,2667.6,2667.3,7.49806]
[1739740582012,0.12171482,2667.6,2667.4,3.74884]
[1739740582908,0.12171482,2667.6,2667.2,3.74914]
[1739740583497,0.12171482,2667.6,2667.3,3.74906]
[1739740583705,0.5875723,2667.6,2667.3,3.74906]
[1739740583879,0.46585748,2667.6,2667.2,3.74912]
[1739740584079,0.11734481,2667.5,2667.3,3.74904]
[1739740584626,0.11734481,2667.5,2667.2,3.74912]
[1739740585214,0.11734481,2667.5,2666.7,3.74988]
[1739740585215,3.75168,2667.3,2666.7,3.74988]
[1739740585378,0.78232988,2667.2,2666.7,7.49971]
[1739740585579,0.11709217,2667.2,2666.3,3.75051]
[1739740585786,5.34,2667.3,2666.7,0.6529]
[1739740585986,0.11709217,2667.1,2667.0,3.74952]
[1739740586190,5.34,2667.3,2667.0,3.74952]
[1739740586409,0.1169601,2667.1,2667.0,3.74952]
[1739740586585,5.34,2667.3,2667.0,3.74945]
[1739740586795,0.1169601,2667.1,2667.0,3.74945]
[1739740586977,5.34,2667.3,2667.0,3.74945]
[1739740587184,0.1169601,2667.1,2667.0,3.74953]
[1739740587385,5.34,2667.3,2667.0,3.74953]
[1739740588080,0.1169601,2667.2,2666.7,3.74986]
[1739740588899,0.1169601,2667.2,2666.9,3.74965]
[1739740589085,0.1169601,2667.2,2666.9,7.49924]
[1739740589285,6.330616,2667.3,2666.9,3.74959]
[1739740589781,0.1169271,2667.2,2667.0,3.74951]
[1739740590013,6.330616,2667.3,2666.9,3.74959]
[1739740590210,0.11680581,2667.1,2666.9,3.74959]
[1739740590410,6.330616,2667.3,2666.9,3.74959]
[1739740591023,0.11680581,2667.2,2666.9,3.74959]
[1739740591530,0.11680581,2667.1,2666.9,3.74959]